bitfinex/quotes_SOLUSD_20240816
["timestamp","ask_amount","ask_price","bid_price","bid_amount"]
[1723849972148,13.73,139.61,139.6,7.1633]
[1723849973756,13.73,139.61,139.59,17.9092]
[1723849973961,13.73,139.61,139.6,7.1633]
[1723849974627,13.73,139.61,139.59,25.0728]
[1723849976359,13.73,139.61,139.56,20.90267832]
[1723849976531,13.73,139.59,139.58,7.1642]
[1723849976738,13.73,139.59,139.57,7.1646]
[1723849977466,13.73,139.59,139.58,7.1643]
[1723849979356,13.73,139.61,139.58,7.1643]
[1723849981200,13.73,139.61,139.57,7.1646]
[1723849982232,13.73,139.61,139.58,7.1641]
[1723849986771,13.73,139.61,139.59,7.1637]
[1723849991081,13.73,139.61,139.57,7.1645]
[1723849991380,23.31575674,139.63,139.57,7.1645]
[1723849991381,13.73,139.59,139.57,7.1645]
[1723849991700,13.73,139.59,139.56,7.1652]
[1723849991975,13.73,139.57,139.56,7.1652]
[1723849993180,13.73,139.57,139.55,25.0793]
[1723849998799,13.73,139.57,139.5,29.09742867]
[1723849998999,13.73,139.53,139.49,17.9217]
[1723849999165,13.73,139.53,139.5,21.53324735]
[1723849999375,13.73,139.53,139.5,7.1683]
[1723849999874,13.73,139.53,139.51,7.1679]
[1723850002571,7.48946342,139.57,139.52,17.9185]
[1723850002790,13.73,139.55,139.53,7.1666]
[1723850002996,13.73,139.55,139.52,17.9185]
[1723850002997,13.73,139.55,139.52,25.0858]
[1723850003913,13.73,139.58,139.52,17.9185]
[1723850004201,13.73,139.58,139.54,7.1662]
[1723850005006,13.73,139.58,139.55,7.1657]
[1723850007922,13.73,139.56,139.54,25.0817]
[1723850009102,13.73,139.56,139.55,7.1658]
[1723850026044,7.1638,139.59,139.55,7.1658]
[1723850026216,13.73,139.57,139.55,7.1658]
[1723850031075,7.49787811,139.62,139.56,17.9129]
[1723850031222,13.73,139.6,139.54,14.35968613]
[1723850031422,13.73,139.6,139.55,45.0]
[1723850031831,13.73,139.61,139.55,45.0]
[1723850032157,13.73,139.61,139.58,25.0739]
[1723850032856,13.73,139.61,139.59,7.1637]
[1723850047004,13.73,139.61,139.58,17.91]
[1723850047882,13.73,139.59,139.52,39.39920735]
[1723850048070,13.73,139.55,139.52,48.70347763]
[1723850048304,13.73,139.55,139.52,32.27927763]
[1723850048895,13.73,139.55,139.52,17.9177]
[1723850049497,13.73,139.53,139.5,7.1682]
[1723850049798,7.1662,139.55,139.51,7.1678]
[1723850050008,13.73,139.53,139.51,7.1678]
[1723850051377,13.73,139.53,139.52,7.1674]
[1723850051578,13.73,139.55,139.52,7.1674]
[1723850053412,13.73,139.55,139.53,7.1668]
[1723850059081,7.48475055,139.57,139.54,7.1664]
[1723850059583,13.73,139.57,139.54,7.1664]
[1723850061193,13.73,139.55,139.54,7.1664]
[1723850061603,13.73,139.55,139.53,25.0836]
[1723850062780,13.73,139.55,139.54,7.1664]
[1723850065103,13.73,139.57,139.54,7.1664]
[1723850068410,13.73,139.57,139.55,7.1658]
[1723850069420,13.73,139.57,139.54,7.1662]
[1723850072086,13.23,139.57,139.54,7.1662]
[1723850079221,13.23,139.57,139.55,7.1657]
[1723850080732,13.23,139.57,139.54,7.1662]
[1723850085941,13.23,139.57,139.55,7.1658]
[1723850087540,13.23,139.57,139.55,6.6658]
[1723850088643,13.23,139.57,139.54,7.1662]
[1723850089007,13.73,139.55,139.53,25.0836]
[1723850091852,13.73,139.55,139.51,7.1675]
[1723850092138,13.73,139.53,139.52,7.1673]
[1723850094155,7.1675,139.52,139.47,7.1698]
[1723850094401,13.73,139.49,139.47,7.1698]
[1723850094530,13.73,139.49,139.48,7.1694]
[1723850095552,7.167,139.53,139.48,7.1694]
[1723850095723,13.73,139.5,139.48,7.1694]
[1723850098675,13.73,139.5,139.43,32.29793006]
[1723850098967,13.73,139.47,139.45,7.1709]
[1723850099121,13.56451023,139.53,139.45,7.1709]
[1723850099454,13.73,139.48,139.45,7.1709]
[1723850101237,13.73,139.48,139.44,7.1714]
[1723850101445,13.73,139.46,139.44,7.1714]
[1723850102254,13.73,139.46,139.43,17.9295]
[1723850102833,22.4634,139.5,139.43,17.9295]
[1723850103134,40.8989,139.49,139.44,7.1714]
[1723850103346,13.73,139.47,139.44,7.1714]
[1723850104128,13.73,139.47,139.45,7.1709]
[1723850104444,13.73,139.49,139.45,7.1709]
[1723850105543,13.73,139.47,139.44,7.1714]
[1723850105890,13.73,139.47,139.4,35.8663]
[1723850105891,13.73,139.45,139.4,53.7998]
[1723850106172,13.73,139.45,139.41,7.1726]
[1723850109050,13.73,139.45,139.42,7.1725]
[1723850109366,7.50151735,139.47,139.43,7.172]
[1723850109367,14.67161735,139.47,139.43,7.172]
[1723850109547,20.9001,139.47,139.43,7.172]
[1723850110558,13.73,139.47,139.43,7.172]
[1723850110761,7.49649582,139.48,139.47,7.17]
[1723850111340,7.49649582,139.48,139.46,25.0958]
[1723850112874,7.49649582,139.48,139.47,7.17]
[1723850113176,22.2948,139.53,139.48,7.1691]
[1723850113177,23.3834,139.53,139.48,7.1691]
[1723850113373,13.73,139.52,139.48,7.1691]
[1723850113876,13.73,139.52,139.49,7.1689]
[1723850115446,13.73,139.52,139.5,7.1684]
[1723850115649,13.73,139.52,139.51,7.1679]
[1723850116188,13.73,139.52,139.5,7.1682]
[1723850116392,13.73,139.54,139.51,7.1679]
[1723850116677,13.73,139.54,139.5,25.0889]
[1723850118846,13.73,139.54,139.51,7.1677]
[1723850119051,13.73,139.54,139.52,7.1673]
[1723850119252,7.49846137,139.55,139.52,7.1673]
[1723850119510,13.73,139.54,139.52,7.1673]
[1723850121768,23.3818,139.56,139.52,7.1673]
[1723850121980,13.73,139.54,139.52,7.1673]
[1723850125080,13.73,139.54,139.47,17.9241]
[1723850125287,13.73,139.51,139.47,17.9241]
[1723850125584,13.73,139.51,139.49,7.1686]
[1723850126590,13.73,139.51,139.47,17.9241]
[1723850126783,13.73,139.49,139.47,7.1699]
[1723850128180,13.73,139.49,139.48,7.1694]
[1723850128946,13.73,139.49,139.47,7.1698]
[1723850129902,13.73,139.52,139.48,7.1694]
[1723850130462,13.73,139.52,139.49,7.1689]
[1723850136667,13.73,139.5,139.48,25.0927]
[1723850137707,7.1675,139.52,139.48,25.0927]
[1723850137898,13.73,139.5,139.48,25.0927]
[1723850139291,13.73,139.52,139.49,7.1688]
[1723850141981,21.22332106,139.52,139.48,25.0926]
[1723850144872,7.1681,139.51,139.48,17.9233]
[1723850145075,28.39092106,139.52,139.48,17.9233]
[1723850146190,13.73,139.5,139.48,17.9233]
[1723850148610,13.73,139.51,139.48,25.0924]
[1723850149627,13.73,139.51,139.49,7.1689]
[1723850157017,7.49332106,139.52,139.51,7.1679]
[1723850157203,17.9114,139.58,139.51,7.1679]
[1723850157204,13.73,139.55,139.51,7.1679]
[1723850158122,13.73,139.54,139.51,7.1679]
[1723850159553,13.73,139.54,139.52,7.1672]
[1723850159904,13.73,139.54,139.49,16.6619]
[1723850160132,13.73,139.52,139.48,6.4473]
[1723850160411,13.73,139.52,139.49,7.1688]
[1723850160920,15.8523,139.55,139.47,17.9244]
[1723850161128,13.73,139.51,139.47,25.0942]
[1723850161332,13.73,139.49,139.47,17.9244]
[1723850161705,13.73,139.49,139.47,25.0942]
[1723850164136,13.73,139.49,139.44,32.29682888]
[1723850164344,13.73,139.47,139.44,25.0993]
[1723850168111,13.73,139.47,139.44,25.0994]
[1723850169223,20.9,139.47,139.44,17.9279]
[1723850169820,13.73,139.47,139.44,25.0993]
[1723850174524,7.4994588,139.51,139.46,17.9256]
[1723850174726,13.73,139.51,139.48,7.1691]
[1723850175126,13.73,139.51,139.47,7.1698]
[1723850175333,13.73,139.51,139.48,7.1694]
[1723850177642,13.73,139.51,139.49,7.1689]
[1723850180936,13.73,139.51,139.48,25.0927]
[1723850185068,7.50171566,139.53,139.48,17.9234]
[1723850185252,13.73,139.53,139.48,17.9234]
[1723850185598,13.73,139.53,139.49,7.1687]
[1723850186465,20.8969,139.53,139.49,7.1687]
[1723850188834,13.73,139.53,139.49,7.1687]
[1723850189839,13.73,139.53,139.48,17.9234]
[1723850189840,13.73,139.53,139.5,7.1684]
[1723850192460,13.73,139.51,139.49,7.1688]
[1723850196479,7.50149305,139.53,139.5,17.9209]
[1723850196678,22.7226,139.55,139.5,17.9209]
[1723850196679,13.73,139.54,139.5,25.0891]
[1723850196882,13.73,139.54,139.51,7.1678]
[1723850197187,7.1657,139.56,139.52,7.1674]
[1723850197355,13.73,139.55,139.52,7.1674]
[1723850197975,13.73,139.55,139.53,7.1668]
[1723850199383,13.73,139.55,139.54,7.1664]
[1723850200245,21.23034224,139.57,139.54,7.1664]
[1723850201051,21.23034224,139.57,139.54,17.9154]
[1723850201271,16.1346,139.59,139.54,17.9154]
[1723850201272,13.73,139.59,139.54,17.9154]
[1723850201450,13.73,139.59,139.56,7.1653]
[1723850204562,13.73,139.59,139.57,7.1648]
[1723850204986,13.73,139.59,139.58,7.1643]
[1723850205271,13.73,139.62,139.59,7.1637]
[1723850206486,13.73,139.62,139.6,7.1631]
[1723850207057,15.9814,139.66,139.56,13.73]
[1723850207290,13.73,139.65,139.63,7.1613]
[1723850207483,30.63686133,139.69,139.64,7.1612]
[1723850207660,13.73,139.67,139.64,7.1612]
[1723850208187,7.1588,139.69,139.65,7.1606]
[1723850208397,13.73,139.67,139.65,7.1606]
[1723850209094,14.65121145,139.71,139.66,17.9001]
[1723850209265,13.73,139.69,139.67,7.1596]
[1723850210484,7.49361145,139.71,139.68,7.1592]
[1723850210485,21.22361145,139.71,139.68,7.1592]
[1723850210684,13.73,139.71,139.68,7.1592]
[1723850211262,13.73,139.71,139.69,7.1586]
[1723850211783,13.73,139.73,139.71,7.1576]
[1723850217399,7.49364607,139.74,139.71,1.43133189]
[1723850217576,13.73,139.73,139.7,17.8949]
[1723850218390,13.73,139.73,139.71,7.1572]
[1723850218557,13.73,139.73,139.7,17.8949]
[1723850219699,13.73,139.73,139.71,7.1573]
[1723850219995,13.73,139.73,139.7,17.8949]
[1723850220165,13.73,139.71,139.7,17.8949]
[1723850223137,29.7114,139.71,139.63,22.6056]
[1723850223281,20.0,139.7,139.59,22.6056]
[1723850223477,13.73,139.64,139.61,17.9061]
[1723850224012,13.73,139.66,139.61,17.9061]
[1723850224221,27.49540174,139.7,139.63,17.9037]
[1723850224222,7.1588,139.69,139.63,17.9037]
[1723850224524,27.49540174,139.7,139.63,17.9037]
[1723850224525,13.73,139.68,139.63,17.9037]
[1723850225106,13.73,139.68,139.64,45.0]
[1723850225684,13.73,139.68,139.66,7.1597]
[1723850226020,34.53,139.7,139.66,7.1597]
[1723850230917,34.53,139.7,139.67,7.1596]
[1723850233705,34.53,139.7,139.66,7.1601]
[1723850233899,41.6883,139.7,139.65,17.9011]
[1723850234206,34.53,139.68,139.65,25.0617]
[1723850235420,34.53,139.68,139.66,7.1602]
[1723850236434,34.53,139.7,139.66,7.1602]
[1723850236593,34.53,139.7,139.67,7.1597]
[1723850237995,34.53,139.7,139.68,7.1591]
[1723850239601,34.53,139.72,139.69,7.1586]
[1723850241418,34.53,139.72,139.7,7.1581]
[1723850242808,49.17995165,139.74,139.7,7.1581]
[1723850243615,42.02375165,139.74,139.71,7.1575]
[1723850247700,42.02375165,139.74,139.7,7.1581]
[1723850247701,49.17995165,139.74,139.7,7.1581]
[1723850247935,49.17995165,139.74,139.69,25.0546]
[1723850247936,13.81,139.71,139.69,25.0546]
[1723850248810,13.81,139.71,139.7,7.1581]
[1723850249219,13.81,139.71,139.69,25.0548]
[1723850249808,13.81,139.71,139.69,17.8963]
[1723850250035,13.81,139.71,139.68,7.159]
[1723850251352,13.81,139.71,139.67,7.1593]
[1723850251505,13.81,139.69,139.66,17.8999]
[1723850251713,13.81,139.67,139.63,17.9034]
[1723850251937,13.81,139.67,139.65,7.1603]
[1723850252319,13.81,139.67,139.66,7.1602]
[1723850254248,13.81,139.69,139.67,7.1595]
[1723850257454,7.49458523,139.72,139.69,7.1586]
[1723850257627,20.9668,139.73,139.69,7.1586]
[1723850258960,21.30271074,139.74,139.71,7.1572]
[1723850259158,21.30271074,139.74,139.72,7.1571]
[1723850260362,7.49271074,139.74,139.72,7.1571]
[1723850265167,7.49271074,139.74,139.73,7.1566]
[1723850265555,13.81,139.75,139.73,7.1566]
[1723850268777,21.30082208,139.75,139.73,7.1566]
[1723850270150,7.49082208,139.75,139.73,7.1566]
[1723850270451,21.30082208,139.75,139.73,7.1566]
[1723850272782,7.1574,139.72,139.68,17.897]
[1723850272960,13.81,139.69,139.67,7.1594]
[1723850273545,13.81,139.69,139.66,7.16]
[1723850273751,13.81,139.67,139.66,7.16]
[1723850275458,7.1578,139.71,139.67,7.1594]
[1723850275661,13.81,139.68,139.67,7.1594]
[1723850275980,7.1573,139.72,139.67,7.1594]
[1723850276195,7.1573,139.72,139.68,7.1591]
[1723850276368,13.81,139.69,139.68,7.1591]
[1723850277460,13.81,139.69,139.67,25.0584]
[1723850277655,13.81,139.69,139.68,7.1592]
[1723850278385,7.1573,139.72,139.68,7.1592]
[1723850278684,13.81,139.7,139.68,7.1592]
[1723850279315,7.1573,139.72,139.68,7.1592]
[1723850279589,13.81,139.69,139.68,7.1592]
[1723850280657,13.81,139.69,139.67,17.8989]
[1723850280658,7.1577,139.71,139.67,17.8989]
[1723850281001,13.81,139.68,139.67,17.8989]
[1723850281173,13.81,139.68,139.65,7.1606]
[1723850281400,13.81,139.68,139.66,7.1601]
[1723850281775,13.81,139.68,139.64,17.9021]
[1723850281960,13.81,139.65,139.64,17.9021]
[1723850282164,13.81,139.65,139.64,25.0633]
[1723850283992,34.55,139.66,139.64,25.0633]
[1723850285676,34.55,139.66,139.65,7.1607]
[1723850286181,34.55,139.66,139.64,25.0631]
[1723850288907,41.7093,139.68,139.64,25.0631]
[1723850291192,41.7093,139.68,139.61,16.3134]
[1723850291193,34.55,139.66,139.61,34.2194]
[1723850291685,34.55,139.66,139.62,7.1619]
[1723850292277,49.20545067,139.68,139.63,7.1616]
[1723850293873,49.20545067,139.68,139.64,7.1612]
[1723850295391,7.49605067,139.68,139.61,95.2755]
[1723850295701,34.55,139.71,139.67,7.1597]
[1723850296378,34.55,139.71,139.68,7.1592]
[1723850297382,49.2003698,139.73,139.69,25.0549]
[1723850298384,42.0437698,139.73,139.69,25.0549]
[1723850298587,34.55,139.71,139.69,17.8964]
[1723850299782,34.55,139.71,139.68,7.159]
[1723850301715,34.55,139.71,139.69,7.1583]
[1723850304515,34.55,139.71,139.65,17.901]
[1723850304716,34.55,139.71,139.67,7.1596]
[1723850304717,34.55,139.69,139.67,7.1596]
[1723850306026,13.81,139.69,139.67,7.1596]
[1723850307029,13.81,139.69,139.68,7.1592]
[1723850313600,13.81,139.69,139.67,25.0584]
[1723850315596,13.81,139.69,139.67,17.8989]
[1723850319627,14.65227266,139.71,139.67,25.0584]
[1723850319804,13.81,139.69,139.67,25.0584]
[1723850324710,14.6507205,139.73,139.67,17.8989]
[1723850324923,13.81,139.71,139.67,17.8989]
[1723850326247,13.81,139.71,139.69,7.1586]
[1723850331841,13.81,139.71,139.68,7.1591]
[1723850332033,13.81,139.69,139.68,7.1591]
[1723850334355,13.81,139.69,139.67,25.0584]
[1723850336377,13.81,139.69,139.68,7.1592]
[1723850340562,13.81,139.69,139.64,32.25187695]
[1723850340869,13.81,139.66,139.64,17.9021]
[1723850342281,13.81,139.66,139.64,25.0633]
[1723850355004,14.65436934,139.69,139.64,25.0633]
[1723850355307,13.81,139.67,139.65,7.1607]
[1723850365791,7.49556934,139.69,139.66,17.9003]
[1723850365982,7.49556934,139.69,139.67,7.1595]
[1723850365983,21.30556934,139.69,139.67,7.1595]
[1723850366178,13.81,139.69,139.67,7.1595]
[1723850370020,14.64979507,139.73,139.68,7.1588]
[1723850370222,13.81,139.71,139.68,7.1588]
[1723850370593,14.64949507,139.73,139.69,7.1587]
[1723850370921,13.81,139.71,139.69,7.1585]
[1723850372323,13.31,139.71,139.69,7.1585]
[1723850373921,13.31,139.71,139.7,7.1581]
[1723850382428,7.49279507,139.73,139.7,7.1581]
[1723850382600,13.81,139.72,139.7,7.1581]
[1723850392213,13.81,139.72,139.68,17.8976]
[1723850392414,13.81,139.7,139.65,24.3539]
[1723850393313,13.81,139.7,139.67,7.1597]
[1723850394404,13.81,139.7,139.68,7.1591]
[1723850395226,13.81,139.72,139.69,17.8964]
[1723850396009,13.81,139.72,139.7,7.1581]
[1723850399256,7.49279507,139.73,139.7,7.1581]
[1723850399563,13.81,139.72,139.7,7.1581]
[1723850401036,13.81,139.72,139.69,25.055]
[1723850402348,7.49279507,139.73,139.69,17.8964]
[1723850402556,7.49279507,139.73,139.71,7.1576]
[1723850402874,7.49279507,139.73,139.7,7.158]
[1723850403455,7.49279507,139.73,139.67,15.7428]
[1723850403456,7.49279507,139.73,139.71,17.8936]
[1723850403961,7.49279507,139.73,139.72,7.1571]
[1723850420391,21.30279507,139.73,139.72,7.1571]
[1723850421658,7.49279507,139.73,139.72,7.1571]
[1723850422180,21.30279507,139.73,139.72,7.1571]
[1723850424186,21.30279507,139.73,139.68,17.8969]
[1723850424353,14.64939507,139.73,139.69,7.1583]
[1723850425199,14.64939507,139.73,139.61,42.3375]
[1723850425200,20.0,139.72,139.61,42.3375]
[1723850425405,20.0,139.72,139.59,76.1877]
[1723850425406,7.1617,139.64,139.6,14.35027936]
[1723850425696,15.2295,139.67,139.59,25.0724]
[1723850425697,7.1619,139.63,139.59,25.0724]
[1723850425860,13.81,139.6,139.59,25.0724]
[1723850426089,13.81,139.6,139.59,17.9088]
[1723850426261,14.65997985,139.63,139.59,17.9088]
[1723850426492,13.81,139.6,139.59,17.9088]
[1723850427287,14.65997985,139.63,139.59,17.9088]
[1723850427601,13.81,139.6,139.59,17.9088]
[1723850429071,13.81,139.6,139.57,7.1648]
[1723850429288,13.81,139.58,139.57,7.1648]
[1723850431807,14.65997985,139.63,139.58,17.9104]
[1723850432094,13.81,139.61,139.58,17.9104]
[1723850432505,13.81,139.61,139.59,7.1633]
[1723850432800,13.81,139.61,139.59,7.1636]
[1723850434005,13.81,139.61,139.6,7.1633]
[1723850434314,7.49817985,139.63,139.6,7.1633]
[1723850434482,13.81,139.62,139.6,7.1633]
[1723850435814,13.81,139.65,139.63,7.1617]
[1723850436021,13.81,139.65,139.63,7.1616]
[1723850436807,6.6456,139.71,139.64,17.9027]
[1723850436808,21.8751,139.71,139.64,17.9027]
[1723850437086,13.81,139.68,139.66,7.1601]
[1723850438122,13.81,139.68,139.65,7.1605]
[1723850440004,13.81,139.68,139.66,7.1601]
[1723850440314,13.81,139.68,139.67,7.1597]
[1723850440527,15.2295,139.71,139.66,17.9002]
[1723850440761,14.65176988,139.73,139.68,7.159]
[1723850440901,13.81,139.7,139.68,7.159]
[1723850441111,13.81,139.7,139.67,7.1595]
[1723850441726,13.81,139.68,139.67,7.1595]
[1723850443786,7.49506988,139.73,139.69,7.1585]
[1723850444152,13.81,139.71,139.69,7.1585]
[1723850448010,13.81,139.71,139.68,25.0565]
[1723850450914,13.31,139.71,139.68,17.8975]
[1723850452123,7.49506988,139.73,139.72,7.1571]
[1723850460333,7.49506988,139.73,139.72,52.1571]
[1723850460530,7.49506988,139.73,139.72,7.1571]
[1723850464853,13.81,139.77,139.76,7.1551]
[1723850465456,13.81,139.79,139.78,7.154]
[1723850466077,13.81,139.79,139.77,25.0405]
[1723850466236,69.05,139.79,139.76,7.155]
[1723850466439,13.81,139.77,139.76,7.155]
[1723850468074,21.299177,139.77,139.76,7.155]
[1723850468984,7.489177,139.77,139.76,7.155]
[1723850469567,13.81,139.81,139.76,61.1321]
[1723850469856,13.81,139.81,139.8,7.153]
[1723850470361,13.81,139.81,139.78,17.8841]
[1723850470569,13.81,139.79,139.78,25.0378]
[1723850472084,13.81,139.79,139.77,7.1544]
[1723850472381,13.81,139.78,139.77,7.1544]
[1723850473457,13.81,139.78,139.75,17.8882]
[1723850473654,13.81,139.78,139.75,25.0436]
[1723850474103,7.48907126,139.79,139.77,17.8857]
[1723850474303,13.81,139.82,139.77,17.8857]
[1723850474465,13.81,139.82,139.8,7.153]
[1723850475175,13.81,139.82,139.81,7.1525]
[1723850475485,13.81,139.83,139.81,7.1525]
[1723850475887,34.46,139.84,139.81,7.1525]
[1723850476060,34.46,139.84,139.82,7.152]
[1723850476394,37.6074136,139.86,139.83,25.0295]
[1723850476576,37.6074136,139.86,139.83,17.8782]
[1723850476762,34.46,139.84,139.83,17.8782]
[1723850477078,3.1474136,139.86,139.8,17.8825]
[1723850477284,34.46,139.81,139.77,24.4772]
[1723850477584,34.46,139.8,139.78,7.1539]
[1723850478052,34.46,139.8,139.79,7.1535]
[1723850478254,34.46,139.82,139.79,7.1535]
[1723850479985,34.46,139.8,139.79,7.1535]
[1723850480856,34.46,139.8,139.77,17.8858]
[1723850481106,7.1568,139.73,139.69,6.5914]
[1723850481298,34.46,139.72,139.69,6.5914]
[1723850482968,17.8819,139.81,139.69,6.5914]
[1723850483157,34.46,139.75,139.69,6.5914]
[1723850483365,34.46,139.73,139.69,6.5914]
[1723850483855,34.46,139.73,139.7,45.0]
[1723850484079,34.46,139.73,139.72,7.1571]
[1723850485307,34.46,139.75,139.72,7.1571]
[1723850486891,34.46,139.75,139.72,17.8921]
[1723850487085,34.46,139.75,139.73,45.0]
[1723850487992,34.46,139.75,139.73,52.1566]
[1723850488599,7.49036604,139.76,139.75,17.889]
[1723850488775,7.49036604,139.76,139.75,70.0446]
[1723850491082,7.49036604,139.76,139.75,25.0446]
[1723850491294,7.49036604,139.76,139.75,70.0446]
[1723850492996,34.46,139.78,139.76,7.1549]
[1723850493501,7.1516,139.83,139.77,62.8859]
[1723850493801,34.46,139.82,139.78,7.154]
[1723850493993,34.46,139.8,139.77,70.0404]
[1723850494203,34.46,139.8,139.76,7.155]
[1723850494701,41.6132,139.8,139.75,13.8163]
[1723850494905,43.63436127,139.84,139.74,25.0454]
[1723850494906,34.46,139.78,139.74,25.0454]
[1723850495486,34.46,139.78,139.75,7.1555]
[1723850496624,34.46,139.78,139.76,7.155]
[1723850497403,25.75656127,139.84,139.73,43.06]
[1723850497686,44.82136127,139.84,139.79,7.1535]
[1723850497790,34.46,139.82,139.78,25.0384]
[1723850498522,34.46,139.82,139.79,7.1534]
[1723850499389,34.46,139.82,139.78,17.8848]
[1723850499390,34.46,139.82,139.78,25.0388]
[1723850499896,3.20996127,139.84,139.75,17.8884]
[1723850499897,34.46,139.8,139.75,17.8884]
[1723850500072,34.46,139.78,139.75,17.8884]
[1723850500699,34.46,139.78,139.75,25.044]
[1723850500909,34.46,139.78,139.75,17.8884]
[1723850501117,41.6141,139.78,139.73,29.9836]
[1723850501404,34.46,139.76,139.74,7.156]
[1723850502417,34.46,139.78,139.75,7.1555]
[1723850502778,34.46,139.78,139.76,7.155]
[1723850502979,7.48917871,139.77,139.76,7.155]
[1723850503182,7.48917871,139.77,139.76,52.155]
[1723850504256,34.46,139.8,139.76,52.155]
[1723850504416,34.46,139.8,139.77,7.1545]
[1723850504709,34.46,139.8,139.76,52.1549]
[1723850506602,34.46,139.8,139.76,95.2149]
[1723850506603,7.48879602,139.79,139.76,95.2149]
[1723850506783,7.48879602,139.79,139.76,52.1549]
[1723850508406,7.48879602,139.79,139.77,7.1546]
[1723850508623,7.48879602,139.79,139.76,70.0424]
[1723850511023,34.46,139.78,139.74,7.156]
[1723850512422,34.46,139.78,139.75,7.1551]
[1723850512618,7.48879602,139.79,139.76,45.0]
[1723850513027,7.48879602,139.79,139.77,7.1545]
[1723850513227,56.6983,139.82,139.77,7.1545]
[1723850514708,22.2383,139.82,139.77,7.1545]
[1723850514919,34.46,139.8,139.77,7.1545]
[1723850515811,34.46,139.8,139.76,7.1549]
[1723850516007,15.0861,139.82,139.76,7.1549]
[1723850516008,34.46,139.78,139.76,7.1549]
[1723850516546,22.2385,139.82,139.77,50.2145]
[1723850516701,34.46,139.81,139.77,7.1545]
[1723850517931,41.6125,139.81,139.77,7.1545]
[1723850518410,41.6125,139.81,139.76,7.1549]
[1723850518607,34.46,139.79,139.76,7.1549]
[1723850518937,34.46,139.79,139.75,25.0442]
[1723850519107,34.46,139.79,139.76,45.0]
[1723850519807,41.6137,139.79,139.75,17.8888]
[1723850520241,34.46,139.77,139.72,17.8919]
[1723850520407,34.46,139.77,139.72,7.1571]
[1723850520408,34.46,139.75,139.72,7.1571]
[1723850521741,34.46,139.75,139.73,45.0]
[1723850522641,34.46,139.75,139.7,22.6908]
[1723850522832,34.46,139.75,139.7,7.1578]
[1723850522833,7.1556,139.75,139.7,7.1578]
[1723850523055,6.5174,139.81,139.69,7.1585]
[1723850523056,17.8867,139.77,139.69,7.1585]
[1723850523256,7.1563,139.74,139.69,7.1585]
[1723850524935,34.46,139.72,139.7,45.0]
[1723850525669,7.49236859,139.74,139.7,88.06]
[1723850525827,7.1537,139.79,139.74,7.1559]
[1723850526027,7.49026284,139.76,139.75,45.0]
[1723850526431,34.46,139.78,139.76,7.1551]
[1723850526972,41.94949485,139.78,139.76,7.1551]
[1723850527142,41.94949485,139.78,139.75,45.0]
[1723850527342,41.94949485,139.78,139.76,25.0423]
[1723850527546,41.94949485,139.78,139.77,7.1546]
[1723850527547,7.48949485,139.78,139.77,7.1546]